lending/lending_fUSD_20250114
["ID","MTS","AMOUNT","RATE_DAILY","PERIOD"]
[348864875,1736829039604,-500.0,9.998e-05,2]
[348864878,1736829039614,-500.0,9.998e-05,2]
[348864879,1736829039623,-500.0,9.998e-05,2]
[348864881,1736829039632,-500.0,9.998e-05,2]
[348864884,1736829039641,-500.0,9.998e-05,2]
[348864885,1736829039652,-503.17581655,9.998e-05,2]
[348864887,1736829039661,-500.0,9.998e-05,2]
[348864889,1736829039670,-500.0,9.998e-05,2]
[348864891,1736829039679,-500.0,9.998e-05,2]
[348864893,1736829039689,-503.74378905,9.998e-05,2]
[348864895,1736829039698,-503.74389007,9.998e-05,2]
[348864897,1736829039708,-510.3671552,9.998e-05,2]
[348864899,1736829039718,-517.32487157,9.998e-05,2]
[348864901,1736829039728,-500.0,9.998e-05,2]
[348864903,1736829039738,-500.0,9.998e-05,2]
[348864905,1736829039747,-500.0,9.998e-05,2]
[348864907,1736829039756,-500.0,9.998e-05,2]
[348864909,1736829039765,-504.37696618,9.998e-05,2]
[348864911,1736829039775,-500.0,9.998e-05,2]
[348864913,1736829039786,-500.0,9.998e-05,2]
[348864915,1736829039795,-1289.94,9.998e-05,2]
[348864917,1736829039804,-500.0,9.998e-05,2]
[348864919,1736829039813,-502.90130693,9.998e-05,2]
[348864921,1736829039822,-505.18827946,9.998e-05,2]
[348864923,1736829039832,-186.30352361,9.998e-05,2]
[348864925,1736829039842,-500.0,9.998e-05,2]
[348864927,1736829039851,-449.72450981,9.998e-05,2]
[348864929,1736829039860,-524.58166364,9.998e-05,2]
[348864931,1736829039868,-500.0,9.998e-05,2]
[348864933,1736829039878,-504.21882559,9.998e-05,2]
[348864935,1736829039888,-500.0,9.998e-05,2]
[348864937,1736829039897,-1804.97,9.998e-05,2]
[348864939,1736829039907,-500.0,9.998e-05,2]
[348864941,1736829039915,-500.0,9.998e-05,2]
[348864943,1736829039924,-500.0,9.998e-05,2]
[348864945,1736829039933,-2696.05,9.998e-05,2]
[348864947,1736829039942,-502.79136194,9.998e-05,2]
[348864949,1736829039951,-500.0,9.998e-05,2]
[348864951,1736829039962,-500.0,9.998e-05,2]
[348864953,1736829039971,-500.0,9.998e-05,2]
[348864955,1736829039980,-369.49939739,9.998e-05,2]
[348864957,1736829039990,-500.0,9.998e-05,2]
[348864959,1736829040000,-500.0,9.998e-05,2]
[348864961,1736829040008,-160.7445331,9.998e-05,2]
[348864963,1736829040019,-503.42552642,9.998e-05,2]
[348864965,1736829040028,-500.0,9.998e-05,2]
[348864967,1736829040038,-500.0,9.998e-05,2]
[348864968,1736829040049,-504.50488073,9.998e-05,2]
[348864970,1736829040058,-500.0,9.998e-05,2]
[348864972,1736829040068,-1436.38,9.998e-05,2]
[348864974,1736829040077,-505.99151233,9.998e-05,2]
[348864976,1736829040087,-500.0,9.998e-05,2]
[348864978,1736829040096,-500.0,9.998e-05,2]
[348864980,1736829040105,-500.0,9.998e-05,2]
[348864982,1736829040114,-562.55656615,9.998e-05,2]
[348864984,1736829040123,-500.0,9.998e-05,2]
[348864986,1736829040132,-500.0,9.998e-05,2]
[348864988,1736829040141,-500.0,9.998e-05,2]
[348864990,1736829040151,-500.0,9.998e-05,2]
[348864992,1736829040161,-392.62649858,9.998e-05,2]
[348864994,1736829040169,-412.54540102,9.998e-05,2]
[348865077,1736829040994,-87.45459898,9.998e-05,2]
[348865078,1736829041003,-500.0,9.998e-05,2]
[348865079,1736829041012,-500.0,9.998e-05,2]
[348865080,1736829041021,-500.0,9.998e-05,2]
[348865081,1736829041030,-500.0,9.998e-05,2]
[348865082,1736829041039,-500.0,9.998e-05,2]
[348865083,1736829041048,-180.650284,9.998e-05,2]
[348865084,1736829041059,-3000.84839263,9.998e-05,2]
[348865085,1736829041070,-140.91132337,9.998e-05,2]
[348865086,1736829041079,-500.0,9.998e-05,2]
[348865087,1736829041088,-330.04666086,9.998e-05,2]
[348865088,1736829041097,-500.0,9.998e-05,2]
[348865089,1736829041106,-608.70422332,9.998e-05,2]
[348865091,1736829041115,-227.56281515,9.998e-05,2]
[348865093,1736829041127,-272.43718485,9.998e-05,2]
[348865095,1736829041137,-1504.6812752,9.998e-05,2]
[348865098,1736829041157,-520.7987248,9.998e-05,2]
[348865100,1736829041167,-500.0,9.998e-05,2]
[348865102,1736829041175,-320.06664658,9.998e-05,2]
[348865104,1736829041188,-320.06664658,9.998e-05,2]
[348865106,1736829041197,-320.06664658,9.999e-05,2]
[348865108,1736829041206,-320.06664658,9.999e-05,2]
[348865110,1736829041215,-500.0,9.999e-05,2]
[348865112,1736829041224,-500.0,9.999e-05,2]
[348865114,1736829041234,-329.96741201,9.999e-05,2]
[348865116,1736829041243,-3496.77363868,9.999e-05,2]
[348865118,1736829041256,-452.46636132,9.999e-05,2]
[348865120,1736829041266,-1763.50830657,9.999e-05,2]
[348865123,1736829041277,-872.11436396,9.999e-05,2]
[348865125,1736829041288,-1407.81732947,9.999e-05,2]
[348865127,1736829041297,-500.0,9.999e-05,2]
[348865129,1736829041307,-1027.35966269,9.999e-05,2]
[348865131,1736829041317,-1054.48033731,9.999e-05,2]
[348865133,1736829041327,-3643.13,9.999e-05,2]
[348865135,1736829041336,-320.06664658,9.999e-05,2]
[348865137,1736829041346,-320.06664658,9.999e-05,2]
[348865139,1736829041356,-503.0,0.0001,2]
[348865141,1736829041365,-320.06664658,0.0001,2]
[348865143,1736829041374,-7061.49542118,0.0001,2]
[348865145,1736829041385,-500.0,0.0001,2]
[348865148,1736829041405,-396.74619,0.0001,2]
[348865150,1736829041416,-1241.233425,0.0001,2]
[348865152,1736829041427,-12745.09413462,0.0001,2]
[348865280,1736829042680,-2351.97,9.994e-05,2]
[348865282,1736829042690,-804.17,9.996e-05,2]
[348865284,1736829042700,-14580.45908138,0.0001,2]
[348865286,1736829042711,-1564.34821412,0.0001,2]
[348865290,1736829042738,-17909.90000001,0.0001,2]
[348865293,1736829042750,-393.44000565,0.0001,2]
[348865295,1736829042761,-476.67811274,0.0001,2]
[348865297,1736829042773,-1246.11544068,0.0001,2]
[348865300,1736829042793,-451.88977681,0.0001,2]
[348865302,1736829042805,-547.85,0.0001,2]
[348865304,1736829042817,-2074.85937241,0.0001,2]
[348865309,1736829042848,-606.21492509,0.0001,2]
[348865322,1736829042962,-1947.01661006,0.0001,2]
[348865570,1736829045584,-500.0,9.994e-05,2]
[348865572,1736829045595,-134.76931988,9.994e-05,2]
[348865578,1736829045641,-533.29068012,9.994e-05,2]
[348865580,1736829045651,-891.16,9.994e-05,2]
[348865582,1736829045660,-500.0,9.996e-05,2]
[348865584,1736829045669,-165.453576,9.998e-05,2]
[348865586,1736829045679,-4202.70647945,0.0001,2]
[348865591,1736829045717,-4341.79727168,0.0001,2]
[348865593,1736829045729,-2024.8765447,0.0001,2]
[348865596,1736829045754,-11428.21181107,0.0001,2]
[348865597,1736829045766,-708.19877881,0.0001,2]
[348865598,1736829045811,-281.0,0.0001,2]
[348865599,1736829045822,-30922.70021354,0.0001,2]
[348865600,1736829045868,-600.70404767,0.0001,2]
[348865601,1736829045879,-270.775,0.0001,2]
[348865605,1736829045926,-1007.37312279,0.0001,2]
[348865608,1736829045938,-2240.57457172,0.0001,2]
[348865610,1736829045949,-622.15636844,0.0001,2]
[348865772,1736829603807,274.52588442,0.00023,120]
[348865773,1736829706668,902.25,8.219e-05,2]
[348865792,1736830102674,623.76,8.528e-05,2]
[348865805,1736830231805,-1421.92393745,8.552e-05,2]
[348865806,1736830231818,-2059.90069911,8.552e-05,2]
[348865807,1736830231830,-449.32685517,8.552e-05,2]
[348865808,1736830231842,-299.99,8.552e-05,2]
[348865809,1736830231967,-576.48219402,8.552e-05,2]
[348865810,1736830232075,-1549.04973416,8.552e-05,2]
[348865811,1736830232088,-17543.32658009,8.552e-05,2]
[348865812,1736830232098,-1704.24,8.556e-05,2]
[348865813,1736830232108,-250.0,8.567e-05,2]
[348865814,1736830232117,-882.66,8.576e-05,2]
[348865815,1736830232127,-250.0,8.725e-05,2]
[348865816,1736830232136,-716.68,8.775e-05,2]
[348865817,1736830232146,-200.69271058,8.775e-05,2]
[348865818,1736830232155,-413.78,8.861e-05,2]
[348865819,1736830232164,-167.9,8.899e-05,2]
[348865820,1736830232173,-184.72,8.933e-05,2]
[348865821,1736830232183,-250.0,8.977e-05,2]
[348865822,1736830232192,-1000.0,8.977e-05,2]
[348865823,1736830232202,-150.0,9.014e-05,2]
[348865824,1736830232212,-1852.42,9.017e-05,2]
[348865825,1736830232221,-345.12,9.036e-05,2]
[348865826,1736830232231,-423.82,9.141e-05,2]
[348865827,1736830232241,-150.99,9.141e-05,2]
[348865828,1736830232250,-857.09,9.141e-05,2]
[348865829,1736830232259,-1810.53,9.178e-05,2]
[348865830,1736830232269,-150.0,9.265e-05,2]
[348865831,1736830232278,-166.72,9.266e-05,2]
[348865832,1736830232288,-9999.99,9.266e-05,2]
[348865834,1736830232297,-266.49,9.266e-05,2]
[348865836,1736830232307,-1453.32,9.341e-05,2]
[348865838,1736830232316,-437.26,9.378e-05,2]
[348865839,1736830232326,-157.083,9.5e-05,2]
[348865841,1736830232336,-162.89,9.544e-05,2]
[348865843,1736830232345,-150.0,9.547e-05,2]
[348865845,1736830232355,-623.76,9.594e-05,2]
[348865847,1736830232364,-293.0,9.701e-05,2]
[348865849,1736830232373,-705.6345,9.896e-05,2]
[348865851,1736830232383,-6066.925593,9.9e-05,2]
[348865853,1736830232392,-416.6583,9.9e-05,2]
[348865855,1736830232401,-404.5081,9.9e-05,2]
[348865857,1736830232411,-1237.54498916,9.972e-05,2]
[348865860,1736830232425,-500.53715074,9.973e-05,2]
[348865862,1736830232434,-152.440075,9.992e-05,2]
[348865865,1736830232443,-732.3998919,9.992e-05,2]
[348865868,1736830232452,-299.523239,9.992e-05,2]
[348865871,1736830232462,-656.0154468,9.992e-05,2]
[348865873,1736830232471,-152.440075,9.993e-05,2]
[348865877,1736830232481,-152.440075,9.993e-05,2]
[348865879,1736830232491,-500.0,9.993e-05,2]
[348865882,1736830232501,-2215.57,9.993e-05,2]
[348865885,1736830232511,-1555.96,9.993e-05,2]
[348865888,1736830232520,-2168.16,9.993e-05,2]
[348865890,1736830232530,-663.4634215,9.993e-05,2]
[348865892,1736830232539,-670.9113961,9.993e-05,2]
[348865894,1736830232550,-500.0,9.993e-05,2]
[348865896,1736830232560,-1458.86,9.993e-05,2]
[348865898,1736830232569,-3837.13,9.993e-05,2]
[348865900,1736830232579,-1054.95,9.993e-05,2]
[348865902,1736830232588,-500.2475,9.993e-05,2]
[348865903,1736830232598,-500.0,9.993e-05,2]
[348865905,1736830232607,-2200.88,9.993e-05,2]
[348865907,1736830232616,-500.0,9.993e-05,2]
[348865909,1736830232626,-1065.94,9.993e-05,2]
[348865911,1736830232636,-504.66,9.993e-05,2]
[348865913,1736830232645,-500.0,9.994e-05,2]
[348865915,1736830232655,-500.0,9.994e-05,2]
[348865917,1736830232665,-388.33392174,9.994e-05,2]
[348865919,1736830232675,-387.39951867,9.994e-05,2]
[348865920,1736830232684,-504.62468573,9.994e-05,2]
[348865922,1736830232694,-506.19735365,9.994e-05,2]
[348865924,1736830232703,-500.0,9.994e-05,2]
[348865926,1736830232712,-500.0,9.994e-05,2]
[348865928,1736830232721,-337.43143863,9.994e-05,2]
[348865929,1736830232730,-500.0,9.994e-05,2]
[348865931,1736830232739,-500.0,9.994e-05,2]
[348865933,1736830232749,-501.32925466,9.994e-05,2]
[348865935,1736830232758,-500.0,9.994e-05,2]
[348865937,1736830232767,-500.0,9.994e-05,2]
[348865939,1736830232776,-500.0,9.994e-05,2]
[348865941,1736830232786,-500.0,9.994e-05,2]
[348865943,1736830232795,-500.0,9.994e-05,2]
[348865945,1736830232805,-551.71615349,9.994e-05,2]
[348865947,1736830232814,-500.0,9.994e-05,2]
[348865949,1736830232824,-500.0,9.994e-05,2]
[348865951,1736830232833,-246.26457312,9.994e-05,2]
[348865953,1736830232842,-500.0,9.994e-05,2]
[348865955,1736830232852,-500.0,9.994e-05,2]
[348865957,1736830232861,-500.0,9.994e-05,2]
[348865959,1736830232870,-500.0,9.994e-05,2]
[348865961,1736830232882,-508.60558585,9.994e-05,2]
[348865963,1736830232892,-500.0,9.994e-05,2]
[348865965,1736830232902,-500.0,9.994e-05,2]
[348865967,1736830232911,-500.0,9.994e-05,2]
[348865969,1736830232920,-500.0,9.994e-05,2]
[348865971,1736830232930,-506.01042318,9.994e-05,2]
[348865973,1736830232942,-500.0,9.994e-05,2]
[348865975,1736830232951,-500.0,9.994e-05,2]
[348865977,1736830232962,-500.0,9.994e-05,2]
[348865979,1736830232972,-500.0,9.994e-05,2]
[348865981,1736830232981,-500.0,9.994e-05,2]
[348865982,1736830232991,-500.0,9.994e-05,2]
[348865984,1736830233001,-500.0,9.994e-05,2]
[348865987,1736830233011,-224.65507408,9.994e-05,2]
[348865989,1736830233021,-500.0,9.994e-05,2]
[348865991,1736830233031,-500.0,9.994e-05,2]
[348865992,1736830233040,-500.0,9.994e-05,2]
[348865994,1736830233050,-500.0,9.994e-05,2]
[348865996,1736830233060,-500.0,9.994e-05,2]
[348865998,1736830233070,-503.08352393,9.994e-05,2]
[348866000,1736830233080,-500.0,9.994e-05,2]
[348866003,1736830233091,-500.0,9.994e-05,2]
[348866005,1736830233100,-500.0,9.994e-05,2]
[348866006,1736830233110,-500.0,9.994e-05,2]
[348866008,1736830233119,-500.0,9.994e-05,2]
[348866010,1736830233129,-500.0,9.994e-05,2]
[348866012,1736830233139,-500.0,9.994e-05,2]
[348866014,1736830233148,-504.49759432,9.994e-05,2]
[348866016,1736830233158,-500.0,9.994e-05,2]
[348866018,1736830233167,-500.0,9.994e-05,2]
[348866020,1736830233176,-496.19586377,9.994e-05,2]
[348866022,1736830233186,-500.0,9.994e-05,2]
[348866024,1736830233196,-500.0,9.994e-05,2]
[348866026,1736830233205,-500.0,9.994e-05,2]
[348866028,1736830233215,-428.52522569,9.994e-05,2]
[348866030,1736830233225,-474.76324607,9.994e-05,2]
[348866032,1736830233235,-500.0,9.994e-05,2]
[348866033,1736830233245,-500.0,9.994e-05,2]
[348866036,1736830233255,-500.0,9.994e-05,2]
[348866038,1736830233265,-500.0,9.994e-05,2]
[348866039,1736830233275,-508.29526787,9.994e-05,2]
[348866042,1736830233285,-500.0,9.994e-05,2]
[348866043,1736830233295,-500.0,9.994e-05,2]
[348866046,1736830233305,-500.0,9.994e-05,2]
[348866047,1736830233314,-500.0,9.994e-05,2]
[348866050,1736830233325,-500.0,9.994e-05,2]
[348866051,1736830233334,-502.97759333,9.994e-05,2]
[348866053,1736830233344,-507.47660801,9.994e-05,2]
[348866056,1736830233354,-500.0,9.994e-05,2]
[348866058,1736830233364,-500.0,9.994e-05,2]
[348866060,1736830233375,-871.96,9.994e-05,2]
[348866062,1736830233384,-500.0,9.994e-05,2]
[348866063,1736830233394,-510.83081712,9.994e-05,2]
[348866064,1736830233404,-500.0,9.994e-05,2]
[348866065,1736830233414,-500.0,9.994e-05,2]
[348866066,1736830233425,-500.0,9.994e-05,2]
[348866067,1736830233435,-506.48926424,9.994e-05,2]
[348866068,1736830233445,-500.0,9.994e-05,2]
[348866069,1736830233455,-501.26692855,9.994e-05,2]
[348866070,1736830233464,-500.0,9.994e-05,2]
[348866071,1736830233473,-501.92456884,9.994e-05,2]
[348866072,1736830233483,-500.0,9.994e-05,2]
[348866073,1736830233492,-500.0,9.994e-05,2]
[348866074,1736830233502,-500.0,9.994e-05,2]
[348866075,1736830233512,-504.04234623,9.994e-05,2]
[348866076,1736830233521,-511.36,9.994e-05,2]
[348866077,1736830233531,-502.60822235,9.994e-05,2]
[348866078,1736830233541,-500.0,9.994e-05,2]
[348866079,1736830233551,-500.0,9.994e-05,2]
[348866080,1736830233560,-500.0,9.994e-05,2]
[348866081,1736830233570,-500.0,9.994e-05,2]
[348866082,1736830233580,-500.0,9.994e-05,2]
[348866083,1736830233590,-500.0,9.994e-05,2]
[348866084,1736830233599,-500.0,9.994e-05,2]
[348866085,1736830233609,-617.29,9.994e-05,2]
[348866086,1736830233619,-500.0,9.994e-05,2]
[348866087,1736830233628,-500.0,9.994e-05,2]
[348866088,1736830233638,-500.0,9.994e-05,2]
[348866089,1736830233648,-500.0,9.994e-05,2]
[348866090,1736830233657,-504.91763378,9.994e-05,2]
[348866091,1736830233667,-500.0,9.994e-05,2]
[348866092,1736830233676,-500.0,9.994e-05,2]
[348866093,1736830233685,-500.0,9.994e-05,2]
[348866094,1736830233695,-819.33,9.994e-05,2]
[348866095,1736830233705,-500.0,9.994e-05,2]
[348866096,1736830233714,-590.59916567,9.994e-05,2]
[348866097,1736830233724,-500.0,9.994e-05,2]
[348866098,1736830233733,-500.0,9.994e-05,2]
[348866099,1736830233743,-507.80809006,9.994e-05,2]
[348866100,1736830233752,-500.0,9.994e-05,2]
[348866101,1736830233762,-513.94,9.994e-05,2]
[348866102,1736830233771,-500.0,9.994e-05,2]
[348866103,1736830233781,-500.0,9.994e-05,2]
[348866104,1736830233791,-417.03991233,9.994e-05,2]
[348866105,1736830233800,-500.0,9.994e-05,2]
[348866106,1736830233810,-500.0,9.994e-05,2]
[348866107,1736830233820,-500.0,9.994e-05,2]
[348866108,1736830233829,-500.0,9.994e-05,2]
[348866109,1736830233839,-500.0,9.994e-05,2]
[348866110,1736830233849,-500.0,9.994e-05,2]
[348866111,1736830233858,-500.0,9.994e-05,2]
[348866112,1736830233868,-500.0,9.994e-05,2]
[348866113,1736830233878,-553.58909478,9.994e-05,2]
[348866114,1736830233891,-500.0,9.994e-05,2]
[348866115,1736830233900,-500.0,9.994e-05,2]
[348866116,1736830233910,-500.0,9.994e-05,2]
[348866117,1736830233919,-500.0,9.994e-05,2]
[348866118,1736830233932,-500.0,9.994e-05,2]
[348866119,1736830233943,-540.98417698,9.994e-05,2]
[348866120,1736830233953,-500.0,9.994e-05,2]
[348866121,1736830233964,-500.0,9.994e-05,2]
[348866122,1736830233974,-495.0252856,9.994e-05,2]
[348866123,1736830233983,-500.0,9.994e-05,2]
[348866124,1736830233993,-510.88967679,9.994e-05,2]
[348866125,1736830234003,-500.0,9.994e-05,2]
[348866126,1736830234013,-500.0,9.994e-05,2]
[348866127,1736830234023,-500.0,9.994e-05,2]
[348866128,1736830234033,-510.24054322,9.994e-05,2]
[348866129,1736830234043,-500.0,9.994e-05,2]
[348866130,1736830234052,-521.6316273,9.994e-05,2]
[348866131,1736830234062,-513.56008845,9.994e-05,2]
[348866132,1736830234072,-500.0,9.994e-05,2]
[348866133,1736830234082,-500.0,9.994e-05,2]
[348866134,1736830234091,-500.0,9.994e-05,2]
[348866135,1736830234101,-500.0,9.994e-05,2]
[348866136,1736830234111,-500.0,9.994e-05,2]
[348866137,1736830234120,-500.0,9.994e-05,2]
[348866138,1736830234130,-500.0,9.994e-05,2]
[348866139,1736830234140,-441.74776065,9.994e-05,2]
[348866140,1736830234150,-500.0,9.994e-05,2]
[348866141,1736830234159,-500.0,9.994e-05,2]
[348866142,1736830234169,-500.0,9.994e-05,2]
[348866143,1736830234422,-664.4,9.994e-05,2]
[348866144,1736830234437,-500.0,9.994e-05,2]
[348866145,1736830234447,-500.0,9.994e-05,2]
[348866146,1736830234458,-500.0,9.994e-05,2]
[348866147,1736830234469,-500.0,9.994e-05,2]
[348866148,1736830234479,-814.25,9.994e-05,2]
[348866149,1736830234490,-500.0,9.994e-05,2]
[348866150,1736830234499,-500.0,9.994e-05,2]
[348866151,1736830234509,-500.0,9.994e-05,2]
[348866152,1736830234519,-500.0,9.994e-05,2]
[348866153,1736830234528,-500.0,9.994e-05,2]
[348866154,1736830234538,-500.0,9.994e-05,2]
[348866155,1736830234549,-500.0,9.994e-05,2]
[348866156,1736830234558,-500.0,9.994e-05,2]
[348866157,1736830234568,-500.0,9.994e-05,2]
[348866158,1736830234579,-500.0,9.994e-05,2]
[348866159,1736830234589,-689.43,9.994e-05,2]
[348866160,1736830234599,-674.56,9.994e-05,2]
[348866161,1736830234609,-500.0,9.994e-05,2]
[348866162,1736830234618,-500.0,9.994e-05,2]
[348866163,1736830234627,-500.0,9.994e-05,2]
[348866164,1736830234636,-500.0,9.994e-05,2]
[348866165,1736830234647,-500.0,9.994e-05,2]
[348866166,1736830234657,-500.0,9.994e-05,2]
[348866167,1736830234667,-500.0,9.994e-05,2]
[348866168,1736830234676,-500.0,9.994e-05,2]
[348866169,1736830234686,-500.0,9.994e-05,2]
[348866170,1736830234696,-500.0,9.994e-05,2]
[348866171,1736830234705,-896.95,9.994e-05,2]
[348866172,1736830234716,-500.0,9.994e-05,2]
[348866173,1736830234727,-500.0,9.994e-05,2]
[348866174,1736830234739,-500.0,9.994e-05,2]
[348866175,1736830234749,-500.0,9.994e-05,2]
[348866176,1736830234760,-584.77,9.994e-05,2]
[348866177,1736830234770,-826.25,9.994e-05,2]
[348866178,1736830234781,-500.0,9.994e-05,2]
[348866179,1736830234791,-609.17916288,9.994e-05,2]
[348866180,1736830234801,-523.37212388,9.994e-05,2]
[348866181,1736830234811,-516.11620511,9.994e-05,2]
[348866182,1736830234821,-500.0,9.994e-05,2]
[348866183,1736830234831,-538.81,9.994e-05,2]
[348866184,1736830234841,-500.0,9.994e-05,2]
[348866185,1736830234850,-500.0,9.994e-05,2]
[348866186,1736830234863,-500.0,9.994e-05,2]
[348866187,1736830234872,-2047.9,9.994e-05,2]
[348866188,1736830234885,-500.0,9.994e-05,2]
[348866189,1736830234895,-500.0,9.994e-05,2]
[348866190,1736830234906,-500.0,9.994e-05,2]
[348866191,1736830234917,-500.0,9.994e-05,2]
[348866192,1736830234928,-671.76,9.994e-05,2]
[348866193,1736830234938,-500.0,9.994e-05,2]
[348866194,1736830234948,-500.0,9.994e-05,2]
[348866195,1736830234958,-2949.6,9.994e-05,2]
[348866196,1736830234970,-500.0,9.994e-05,2]
[348866197,1736830234980,-286.43433911,9.994e-05,2]
[348866198,1736830234990,-500.0,9.994e-05,2]
[348866199,1736830234999,-500.0,9.994e-05,2]
[348866200,1736830235009,-500.0,9.994e-05,2]
[348866201,1736830235019,-506.40796315,9.994e-05,2]
[348866202,1736830235028,-500.0,9.994e-05,2]
[348866203,1736830235038,-1432.45,9.994e-05,2]
[348866204,1736830235051,-500.0,9.994e-05,2]
[348866205,1736830235060,-500.0,9.994e-05,2]
[348866206,1736830235070,-500.0,9.994e-05,2]
[348866207,1736830235079,-2929.83,9.994e-05,2]
[348866208,1736830235091,-500.0,9.994e-05,2]
[348866209,1736830235101,-3642.79,9.994e-05,2]
[348866210,1736830235111,-8064.94,9.994e-05,2]
[348866211,1736830235120,-604.27,9.994e-05,2]
[348866212,1736830235130,-500.0,9.994e-05,2]
[348866213,1736830235140,-500.0,9.994e-05,2]
[348866214,1736830235149,-500.0,9.994e-05,2]
[348866215,1736830235159,-500.0,9.994e-05,2]
[348866216,1736830235168,-500.0,9.994e-05,2]
[348866217,1736830235177,-500.0,9.994e-05,2]
[348866218,1736830235187,-500.0,9.994e-05,2]
[348866219,1736830235196,-500.0,9.994e-05,2]
[348866220,1736830235206,-912.22,9.994e-05,2]
[348866221,1736830235218,-500.0,9.994e-05,2]
[348866222,1736830235228,-500.0,9.994e-05,2]
[348866223,1736830235238,-500.0,9.994e-05,2]
[348866224,1736830235248,-500.0,9.994e-05,2]
[348866225,1736830235257,-1343.75,9.994e-05,2]
[348866226,1736830235268,-3139.09742137,9.994e-05,2]
[348866227,1736830235297,-574.12257863,9.994e-05,2]
[348866228,1736830235308,-500.0,9.994e-05,2]
[348866229,1736830235319,-500.0,9.994e-05,2]
[348866230,1736830235330,-500.0,9.994e-05,2]
[348866231,1736830235339,-500.0,9.994e-05,2]
[348866232,1736830235348,-500.0,9.994e-05,2]
[348866233,1736830235357,-757.42,9.994e-05,2]
[348866234,1736830235366,-500.0,9.994e-05,2]
[348866235,1736830235376,-500.0,9.994e-05,2]
[348866236,1736830235385,-4400.01739305,9.994e-05,2]
[348866237,1736830235396,-299.99,9.994e-05,2]
[348866238,1736830237646,-500.0,9.993e-05,2]
[348866239,1736830237655,-111.44144816,9.994e-05,2]
[348866240,1736830237666,-4226.85115879,9.994e-05,2]
[348866241,1736830237676,-500.0,9.994e-05,2]
[348866242,1736830237685,-500.0,9.994e-05,2]
[348866243,1736830237695,-500.0,9.994e-05,2]
[348866244,1736830237703,-516.8382078,9.994e-05,2]
[348866245,1736830237713,-500.0,9.994e-05,2]
[348866246,1736830237722,-2691.14,9.994e-05,2]
[348866247,1736830237731,-500.0,9.994e-05,2]
[348866248,1736830237740,-500.0,9.994e-05,2]
[348866249,1736830237751,-500.0,9.994e-05,2]
[348866250,1736830237760,-500.0,9.994e-05,2]
[348866251,1736830237769,-563.75030633,9.994e-05,2]
[348866252,1736830237779,-500.0,9.994e-05,2]
[348866253,1736830237788,-3846.02,9.994e-05,2]
[348866254,1736830237798,-600.5823952,9.994e-05,2]
[348866255,1736830237808,-658.49,9.994e-05,2]
[348866256,1736830237818,-500.0,9.994e-05,2]
[348866257,1736830237827,-500.0,9.994e-05,2]
[348866258,1736830237836,-1017.43,9.994e-05,2]
[348866259,1736830237845,-4567.44,9.994e-05,2]
[348866260,1736830237854,-500.0,9.994e-05,2]
[348866261,1736830237863,-516.03410519,9.994e-05,2]
[348866262,1736830237873,-500.0,9.994e-05,2]
[348866263,1736830237885,-500.0,9.994e-05,2]
[348866264,1736830237895,-607.27360169,9.994e-05,2]
[348866265,1736830237905,-557.2,9.994e-05,2]
[348866266,1736830237916,-500.0,9.994e-05,2]
[348866267,1736830237926,-500.0,9.994e-05,2]
[348866268,1736830237937,-1385.3,9.994e-05,2]
[348866269,1736830237947,-1232.41,9.994e-05,2]
[348866270,1736830237957,-1850.56,9.994e-05,2]
[348866271,1736830237967,-593.74,9.994e-05,2]
[348866272,1736830237977,-571.67,9.994e-05,2]
[348866273,1736830237987,-519.56,9.994e-05,2]
[348866274,1736830237998,-1674.28,9.994e-05,2]
[348866275,1736830238007,-500.0,9.994e-05,2]
[348866276,1736830238017,-500.0,9.994e-05,2]
[348866278,1736830238026,-500.0,9.994e-05,2]
[348866279,1736830238035,-479.17083452,9.994e-05,2]
[348866281,1736830238044,-1166.53,9.994e-05,2]
[348866283,1736830238053,-500.0,9.994e-05,2]
[348866285,1736830238064,-500.0,9.994e-05,2]
[348866287,1736830238073,-500.0,9.994e-05,2]
[348866289,1736830238083,-1000.0,9.994e-05,2]